[Event "*** SCC Grand Prix: Titled Tuesday Blitz"]
[Site "Chess.com"]
[Date "2020.08.11"]
[Round "2"]
[White "amatatanav"]
[Black "PavelShkapenko"]
[Result "1-0"]
[WhiteElo "2452"]
[BlackElo "2656"]
[TimeControl "180+1"]
[EndTime "10:20:01 PDT"]
[Termination "amatatanav won by resignation"]

1. e4 {[%clk 0:03:00.9]} 1... c5 {[%clk 0:02:58.7]} 2. Ne2 {[%clk 0:03:00.5]}
2... e6 {[%clk 0:02:58.2]} 3. d4 {[%clk 0:02:59.8]} 3... cxd4 {[%clk 0:02:56.4]}
4. Nxd4 {[%clk 0:03:00.7]} 4... Nf6 {[%clk 0:02:56.8]} 5. Nc3 {[%clk 0:03:00.1]}
5... Nc6 {[%clk 0:02:56.2]} 6. Be2 {[%clk 0:02:52.3]} 6... Bb4 {[%clk 0:02:55]}
7. O-O {[%clk 0:02:51.6]} 7... Bxc3 {[%clk 0:02:54.3]} 8. bxc3 {[%clk
0:02:52.5]} 8... Nxe4 {[%clk 0:02:54.6]} 9. Bd3 {[%clk 0:02:50.3]} 9... Nxc3
{[%clk 0:02:54]} 10. Qg4 {[%clk 0:02:49]} 10... Qf6 {[%clk 0:02:54.5]} 11. Nxc6
{[%clk 0:02:40.2]} 11... bxc6 {[%clk 0:02:54.9]} 12. Bg5 {[%clk 0:02:39.7]}
12... Qe5 {[%clk 0:02:54.1]} 13. Bf4 {[%clk 0:02:39.6]} 13... Qd4 {[%clk
0:02:41.5]} 14. Qg3 {[%clk 0:02:30.5]} 14... Ne4 {[%clk 0:01:56.5]} 15. Bxe4
{[%clk 0:02:14.7]} 15... Qxe4 {[%clk 0:01:56.4]} 16. Qxg7 {[%clk 0:02:11.9]}
16... Qxf4 {[%clk 0:01:56.6]} 17. Qxh8+ {[%clk 0:02:10]} 17... Ke7 {[%clk
0:01:57.1]} 18. Qxh7 {[%clk 0:01:56]} 18... Ba6 {[%clk 0:01:49]} 19. Rfe1 {[%clk
0:01:53.4]} 19... Bc4 {[%clk 0:01:41.1]} 20. Re4 {[%clk 0:00:58.6]} 20... Qf6
{[%clk 0:01:39.5]} 21. Qh4 {[%clk 0:00:57.3]} 21... Bd5 {[%clk 0:01:37.1]} 22.
Qxf6+ {[%clk 0:00:53.8]} 22... Kxf6 {[%clk 0:01:37.4]} 23. Rb4 {[%clk
0:00:54.3]} 23... c5 {[%clk 0:01:30.7]} 24. Rb2 {[%clk 0:00:37.8]} 24... Rg8
{[%clk 0:01:22.2]} 25. g3 {[%clk 0:00:37.7]} 25... Rg4 {[%clk 0:01:22.2]} 26. f4
{[%clk 0:00:35.8]} 26... Rg8 {[%clk 0:01:02.7]} 27. Rc1 {[%clk 0:00:34.9]} 27...
c4 {[%clk 0:01:02.3]} 28. c3 {[%clk 0:00:34.4]} 28... Be4 {[%clk 0:00:59.8]} 29.
Kf2 {[%clk 0:00:33.8]} 29... Rh8 {[%clk 0:00:59.2]} 30. Ke3 {[%clk 0:00:33.9]}
30... d5 {[%clk 0:00:57.6]} 31. Rf1 {[%clk 0:00:29.7]} 31... a5 {[%clk
0:00:55.5]} 32. Rff2 {[%clk 0:00:29.5]} 32... a4 {[%clk 0:00:54.1]} 33. a3
{[%clk 0:00:28.5]} 33... Rd8 {[%clk 0:00:44.6]} 34. Kd4 {[%clk 0:00:27.6]} 34...
Kf5 {[%clk 0:00:42.7]} 35. Rb4 {[%clk 0:00:27.5]} 35... f6 {[%clk 0:00:42.3]}
36. Rxa4 {[%clk 0:00:26.1]} 36... Bd3 {[%clk 0:00:39.8]} 37. Rb4 {[%clk
0:00:23.9]} 37... Ra8 {[%clk 0:00:39]} 38. a4 {[%clk 0:00:24]} 38... Be4 {[%clk
0:00:38]} 39. Ra2 {[%clk 0:00:23.1]} 39... e5+ {[%clk 0:00:37]} 40. fxe5 {[%clk
0:00:23.6]} 40... fxe5+ {[%clk 0:00:37.4]} 41. Kc5 {[%clk 0:00:24.1]} 41... Rc8+
{[%clk 0:00:37.2]} 42. Kb6 {[%clk 0:00:19.7]} 42... d4 {[%clk 0:00:37.5]} 43. a5
{[%clk 0:00:17]} 43... dxc3 {[%clk 0:00:36.7]} 44. a6 {[%clk 0:00:14.3]} 44...
c2 {[%clk 0:00:36.1]} 45. Ra1 {[%clk 0:00:13.9]} 45... Rd8 {[%clk 0:00:31]} 46.
Rxc4 {[%clk 0:00:05.1]} 46... Rd1 {[%clk 0:00:30.9]} 47. Rxc2 {[%clk 0:00:01.5]}
47... Bxc2 {[%clk 0:00:27]} 48. Rxd1 {[%clk 0:00:01.2]} 48... Bxd1 {[%clk
0:00:27.3]} 49. a7 {[%clk 0:00:01.7]} 49... Bf3 {[%clk 0:00:27.8]} 50. Kc5
{[%clk 0:00:02.4]} 50... Ba8 {[%clk 0:00:26.2]} 51. h3 {[%clk 0:00:02.5]} 51...
Bg2 {[%clk 0:00:22.4]} 52. Kc4 {[%clk 0:00:01.9]} 52... Ba8 {[%clk 0:00:17.2]}
53. Kd3 {[%clk 0:00:02.8]} 53... Bb7 {[%clk 0:00:17]} 54. Ke3 {[%clk 0:00:03.3]}
54... Kg5 {[%clk 0:00:17.2]} 55. Kd3 {[%clk 0:00:03.3]} 55... Kf5 {[%clk
0:00:17.5]} 56. Ke3 {[%clk 0:00:03.8]} 56... Bc6 {[%clk 0:00:16.1]} 57. Kf2
{[%clk 0:00:04.3]} 57... Ke4 {[%clk 0:00:15.3]} 58. Ke2 {[%clk 0:00:04.6]} 58...
Bb5+ {[%clk 0:00:15.2]} 59. Kf2 {[%clk 0:00:04.5]} 59... Bc6 {[%clk 0:00:15.4]}
60. Ke2 {[%clk 0:00:05.4]} 60... Kd4 {[%clk 0:00:14.4]} 61. h4 {[%clk
0:00:04.3]} 61... e4 {[%clk 0:00:14.9]} 62. h5 {[%clk 0:00:04.3]} 62... e3
{[%clk 0:00:15.3]} 63. h6 {[%clk 0:00:04.6]} 63... Bb5+ {[%clk 0:00:15.6]} 64.
Ke1 {[%clk 0:00:04.7]} 64... Bc6 {[%clk 0:00:11.3]} 65. h7 {[%clk 0:00:05]} 1-0

[Event "*** SCC Grand Prix: Titled Tuesday Blitz"]
[Site "Chess.com"]
[Date "2020.08.11"]
[Round "2"]
[White "Mr_Sinigami"]
[Black "Grischuk"]
[Result "0-1"]
[WhiteElo "2607"]
[BlackElo "3033"]
[TimeControl "180+1"]
[EndTime "10:20:06 PDT"]
[Termination "Grischuk won on time"]

1. d4 {[%clk 0:03:00.9]} 1... e6 {[%clk 0:03:00]} 2. Nf3 {[%clk 0:03:00.8]} 2...
c5 {[%clk 0:02:58]} 3. c3 {[%clk 0:02:56]} 3... d5 {[%clk 0:02:48.7]} 4. Bf4
{[%clk 0:02:55]} 4... Bd6 {[%clk 0:02:45.8]} 5. Bg3 {[%clk 0:02:54.5]} 5... Nf6
{[%clk 0:02:41.7]} 6. e3 {[%clk 0:02:51.5]} 6... O-O {[%clk 0:02:39]} 7. Nbd2
{[%clk 0:02:51]} 7... Qc7 {[%clk 0:02:37.5]} 8. Ne5 {[%clk 0:02:49.1]} 8... b6
{[%clk 0:02:00.2]} 9. f4 {[%clk 0:02:46.8]} 9... Bb7 {[%clk 0:01:53.2]} 10. Bd3
{[%clk 0:02:40.1]} 10... Ne4 {[%clk 0:01:44.3]} 11. Nxe4 {[%clk 0:02:29]} 11...
dxe4 {[%clk 0:01:45.2]} 12. Be2 {[%clk 0:02:28.9]} 12... cxd4 {[%clk 0:01:32.5]}
13. exd4 {[%clk 0:02:22.5]} 13... f6 {[%clk 0:01:27.7]} 14. Qb3 {[%clk
0:01:06.5]} 14... Re8 {[%clk 0:00:49.1]} 15. Bc4 {[%clk 0:01:01.2]} 15... Qc8
{[%clk 0:00:34]} 16. Ng4 {[%clk 0:00:58.7]} 16... Kh8 {[%clk 0:00:33.7]} 17. Ne3
{[%clk 0:00:56.7]} 17... Nc6 {[%clk 0:00:33.8]} 18. Be2 {[%clk 0:00:54.8]} 18...
Ne7 {[%clk 0:00:32.7]} 19. O-O {[%clk 0:00:51.5]} 19... Nd5 {[%clk 0:00:32.4]}
20. Nxd5 {[%clk 0:00:49.8]} 20... exd5 {[%clk 0:00:27.8]} 21. f5 {[%clk
0:00:43.2]} 21... Qc7 {[%clk 0:00:23.6]} 22. Bxd6 {[%clk 0:00:40.3]} 22... Qxd6
{[%clk 0:00:24.5]} 23. g3 {[%clk 0:00:40.1]} 23... Re7 {[%clk 0:00:24]} 24. Rf4
{[%clk 0:00:39.4]} 24... a5 {[%clk 0:00:22.1]} 25. a3 {[%clk 0:00:34.6]} 25...
Ba6 {[%clk 0:00:20.4]} 26. Qc2 {[%clk 0:00:30.8]} 26... Bxe2 {[%clk 0:00:18.3]}
27. Qxe2 {[%clk 0:00:30.7]} 27... Qd7 {[%clk 0:00:16.8]} 28. Re1 {[%clk
0:00:28.4]} 28... b5 {[%clk 0:00:16.8]} 29. Qh5 {[%clk 0:00:27.3]} 29... Qe8
{[%clk 0:00:16.2]} 30. Qe2 {[%clk 0:00:26.3]} 30... Rc8 {[%clk 0:00:14.8]} 31.
Ra1 {[%clk 0:00:19.4]} 31... h6 {[%clk 0:00:13.9]} 32. Rff1 {[%clk 0:00:14]}
32... Rec7 {[%clk 0:00:13.8]} 33. Qe3 {[%clk 0:00:10.4]} 33... Kh7 {[%clk
0:00:13.4]} 34. Rf2 {[%clk 0:00:09.8]} 34... Rc4 {[%clk 0:00:13.3]} 35. Kg2
{[%clk 0:00:09.6]} 35... Qf7 {[%clk 0:00:11.9]} 36. Rd2 {[%clk 0:00:09.2]} 36...
b4 {[%clk 0:00:11.4]} 37. cxb4 {[%clk 0:00:09.1]} 37... axb4 {[%clk 0:00:12.3]}
38. a4 {[%clk 0:00:09.6]} 38... Qa7 {[%clk 0:00:10.8]} 39. a5 {[%clk 0:00:09.3]}
39... Rc2 {[%clk 0:00:10.8]} 40. Kh3 {[%clk 0:00:07.4]} 40... Rxd2 {[%clk
0:00:08.1]} 41. Qxd2 {[%clk 0:00:07.3]} 41... Rc4 {[%clk 0:00:09]} 42. Qf4
{[%clk 0:00:05.6]} 42... Qxd4 {[%clk 0:00:04.2]} 43. a6 {[%clk 0:00:05]} 43...
Qa7 {[%clk 0:00:04.1]} 44. Qg4 {[%clk 0:00:04.9]} 44... Rc8 {[%clk 0:00:04.2]}
45. Qg6+ {[%clk 0:00:04.7]} 45... Kh8 {[%clk 0:00:04.6]} 46. Ra5 {[%clk
0:00:05.2]} 46... Rd8 {[%clk 0:00:03.6]} 47. Rb5 {[%clk 0:00:01.5]} 47... Qxa6
{[%clk 0:00:02.3]} 48. Rxb4 {[%clk 0:00:01.6]} 48... Qf1+ {[%clk 0:00:01.8]} 49.
Kh4 {[%clk 0:00:01.5]} 49... Qe2 {[%clk 0:00:02.4]} 50. h3 {[%clk 0:00:01.7]}
50... Qd2 {[%clk 0:00:02.7]} 51. Rb7 {[%clk 0:00:01.7]} 51... Qg5+ {[%clk
0:00:02.8]} 52. Qxg5 {[%clk 0:00:02.3]} 52... hxg5+ {[%clk 0:00:03.3]} 53. Kh5
{[%clk 0:00:02.7]} 53... Kh7 {[%clk 0:00:03.3]} 54. g4 {[%clk 0:00:02.1]} 54...
e3 {[%clk 0:00:03.2]} 55. Re7 {[%clk 0:00:02]} 55... d4 {[%clk 0:00:03.8]} 56.
Re4 {[%clk 0:00:02.3]} 56... d3 {[%clk 0:00:04]} 57. Re8 {[%clk 0:00:02.7]}
57... Rxe8 {[%clk 0:00:03.7]} 0-1

[Event "*** SCC Grand Prix: Titled Tuesday Blitz"]
[Site "Chess.com"]
[Date "2020.08.11"]
[Round "2"]
[White "gena217"]
[Black "Kildepiotr"]
[Result "0-1"]
[WhiteElo "2892"]
[BlackElo "2600"]
[TimeControl "180+1"]
[EndTime "10:20:07 PDT"]
[Termination "Kildepiotr won on time"]

1. e4 {[%clk 0:03:00.9]} 1... g6 {[%clk 0:02:59.7]} 2. d4 {[%clk 0:03:00.8]}
2... Bg7 {[%clk 0:02:59.3]} 3. Nf3 {[%clk 0:03:01.4]} 3... c6 {[%clk 0:02:58.8]}
4. h3 {[%clk 0:02:58.4]} 4... d6 {[%clk 0:02:58.5]} 5. c4 {[%clk 0:02:58]} 5...
Nd7 {[%clk 0:02:57]} 6. Be2 {[%clk 0:02:57.2]} 6... e5 {[%clk 0:02:57.4]} 7. Nc3
{[%clk 0:02:57]} 7... Ngf6 {[%clk 0:02:57.5]} 8. d5 {[%clk 0:02:54.4]} 8... cxd5
{[%clk 0:02:57.1]} 9. cxd5 {[%clk 0:02:54.2]} 9... O-O {[%clk 0:02:55.7]} 10.
Be3 {[%clk 0:02:54.2]} 10... a6 {[%clk 0:02:53.4]} 11. Nd2 {[%clk 0:02:49.8]}
11... b5 {[%clk 0:02:50.4]} 12. O-O {[%clk 0:02:50.2]} 12... Nb6 {[%clk
0:02:41.6]} 13. Qb3 {[%clk 0:02:37.1]} 13... Rb8 {[%clk 0:02:30.2]} 14. a4
{[%clk 0:02:26.8]} 14... Bd7 {[%clk 0:02:12.4]} 15. axb5 {[%clk 0:02:24.7]}
15... axb5 {[%clk 0:02:12.3]} 16. Qb4 {[%clk 0:02:23.9]} 16... Qe7 {[%clk
0:02:01.2]} 17. Ra6 {[%clk 0:02:22.2]} 17... Nc4 {[%clk 0:01:59.2]} 18. Bxc4
{[%clk 0:01:30.6]} 18... bxc4 {[%clk 0:02:00.1]} 19. Qa3 {[%clk 0:01:31.3]}
19... Rfc8 {[%clk 0:01:53.7]} 20. Rc1 {[%clk 0:01:24.1]} 20... Ne8 {[%clk
0:01:49.9]} 21. Ra7 {[%clk 0:01:16]} 21... f5 {[%clk 0:01:41.5]} 22. f3 {[%clk
0:01:06]} 22... Qd8 {[%clk 0:01:32.7]} 23. Nd1 {[%clk 0:01:00.7]} 23... Bb5
{[%clk 0:01:21.4]} 24. Nc3 {[%clk 0:00:47.3]} 24... Bd7 {[%clk 0:01:20.8]} 25.
Nd1 {[%clk 0:00:47.3]} 25... Bb5 {[%clk 0:01:17.4]} 26. Qa5 {[%clk 0:00:47]}
26... Qxa5 {[%clk 0:01:14.9]} 27. Rxa5 {[%clk 0:00:47.9]} 27... Bf6 {[%clk
0:01:12.1]} 28. Nc3 {[%clk 0:00:44.5]} 28... Bd7 {[%clk 0:01:11.5]} 29. Nd1
{[%clk 0:00:45]} 29... Bd8 {[%clk 0:01:07.3]} 30. Ra3 {[%clk 0:00:43.1]} 30...
Bb5 {[%clk 0:00:54.9]} 31. Nc3 {[%clk 0:00:40.9]} 31... Bb6 {[%clk 0:00:54]} 32.
Nxb5 {[%clk 0:00:37.6]} 32... Bxe3+ {[%clk 0:00:53.7]} 33. Rxe3 {[%clk
0:00:38.5]} 33... Rxb5 {[%clk 0:00:54]} 34. Rxc4 {[%clk 0:00:35.9]} 34... Rxc4
{[%clk 0:00:47.9]} 35. Nxc4 {[%clk 0:00:36.8]} 35... fxe4 {[%clk 0:00:44.2]} 36.
fxe4 {[%clk 0:00:37.7]} 36... Rb4 {[%clk 0:00:42.1]} 37. b3 {[%clk 0:00:38]}
37... Kf7 {[%clk 0:00:41.5]} 38. Kf2 {[%clk 0:00:38.3]} 38... Ke7 {[%clk
0:00:41.6]} 39. Ke2 {[%clk 0:00:38.9]} 39... Nc7 {[%clk 0:00:41.3]} 40. Kd2
{[%clk 0:00:37.5]} 40... Nb5 {[%clk 0:00:41.5]} 41. Kc2 {[%clk 0:00:35.3]} 41...
Nd4+ {[%clk 0:00:41.3]} 42. Kb2 {[%clk 0:00:35.9]} 42... Rb7 {[%clk 0:00:39.3]}
43. Nd2 {[%clk 0:00:33]} 43... Rc7 {[%clk 0:00:37.8]} 44. Rc3 {[%clk 0:00:32.4]}
44... Ra7 {[%clk 0:00:36.6]} 45. Nf3 {[%clk 0:00:32]} 45... Ne2 {[%clk
0:00:32.8]} 46. Rc2 {[%clk 0:00:30.3]} 46... Nf4 {[%clk 0:00:32]} 47. Rd2 {[%clk
0:00:30.7]} 47... Kf6 {[%clk 0:00:28.5]} 48. b4 {[%clk 0:00:28.4]} 48... Ke7
{[%clk 0:00:25.2]} 49. Ne1 {[%clk 0:00:26]} 49... Kd7 {[%clk 0:00:24.3]} 50. Nc2
{[%clk 0:00:25.3]} 50... g5 {[%clk 0:00:20]} 51. Kb3 {[%clk 0:00:24.4]} 51... h5
{[%clk 0:00:18.9]} 52. Na3 {[%clk 0:00:23.6]} 52... g4 {[%clk 0:00:18]} 53. hxg4
{[%clk 0:00:23.5]} 53... hxg4 {[%clk 0:00:18.9]} 54. g3 {[%clk 0:00:22]} 54...
Nh3 {[%clk 0:00:18.1]} 55. b5 {[%clk 0:00:19.5]} 55... Ng5 {[%clk 0:00:17.2]}
56. Re2 {[%clk 0:00:20]} 56... Nf3 {[%clk 0:00:16.7]} 57. Kb4 {[%clk 0:00:20.2]}
57... Nd4 {[%clk 0:00:16.9]} 58. Rb2 {[%clk 0:00:19.5]} 58... Kc7 {[%clk
0:00:15.2]} 59. Nc4 {[%clk 0:00:16.7]} 59... Ra1 {[%clk 0:00:13.2]} 60. b6+
{[%clk 0:00:16.8]} 60... Kd7 {[%clk 0:00:13.4]} 61. Kc3 {[%clk 0:00:17.7]} 61...
Ra8 {[%clk 0:00:12.2]} 62. Na5 {[%clk 0:00:15]} 62... Rb8 {[%clk 0:00:10.9]} 0-1

[Event "*** SCC Grand Prix: Titled Tuesday Blitz"]
[Site "Chess.com"]
[Date "2020.08.11"]
[Round "2"]
[White "Lupul_Cenusiu"]
[Black "Arseniy_Nesterov"]
[Result "0-1"]
[WhiteElo "2501"]
[BlackElo "2751"]
[TimeControl "180+1"]
[EndTime "10:20:09 PDT"]
[Termination "Arseniy_Nesterov won on time"]

1. d4 {[%clk 0:03:00.9]} 1... d5 {[%clk 0:02:59.6]} 2. Nf3 {[%clk 0:02:58.7]}
2... Nf6 {[%clk 0:02:59.3]} 3. c4 {[%clk 0:02:58.4]} 3... c6 {[%clk 0:02:59.3]}
4. e3 {[%clk 0:02:58.6]} 4... Bg4 {[%clk 0:02:58.5]} 5. Nc3 {[%clk 0:02:56.5]}
5... e6 {[%clk 0:02:58.6]} 6. Be2 {[%clk 0:02:54.8]} 6... Nbd7 {[%clk
0:02:57.1]} 7. b3 {[%clk 0:02:48.2]} 7... Bd6 {[%clk 0:02:55.6]} 8. O-O {[%clk
0:02:46.7]} 8... O-O {[%clk 0:02:55.2]} 9. Bb2 {[%clk 0:02:46.1]} 9... Qe7
{[%clk 0:02:53.3]} 10. Re1 {[%clk 0:02:44.2]} 10... Rad8 {[%clk 0:02:51.3]} 11.
a4 {[%clk 0:02:42.6]} 11... Rfe8 {[%clk 0:02:49.9]} 12. a5 {[%clk 0:02:39.4]}
12... a6 {[%clk 0:02:48]} 13. h3 {[%clk 0:02:38.7]} 13... Bh5 {[%clk 0:02:47.6]}
14. Ne5 {[%clk 0:02:31.6]} 14... Bxe2 {[%clk 0:02:43.8]} 15. Nxe2 {[%clk
0:02:30.6]} 15... Nf8 {[%clk 0:02:27.3]} 16. Qc2 {[%clk 0:02:26.6]} 16... Qc7
{[%clk 0:02:23.2]} 17. Nd3 {[%clk 0:02:17.2]} 17... Ng6 {[%clk 0:02:20.9]} 18.
c5 {[%clk 0:02:13.5]} 18... Bf8 {[%clk 0:02:19.1]} 19. Ng3 {[%clk 0:02:05.4]}
19... Ne4 {[%clk 0:02:07.3]} 20. Nxe4 {[%clk 0:02:04.5]} 20... dxe4 {[%clk
0:02:07.6]} 21. Nb4 {[%clk 0:02:04.5]} 21... f5 {[%clk 0:02:06.7]} 22. Qc4
{[%clk 0:01:59.3]} 22... Qf7 {[%clk 0:02:05.8]} 23. Na2 {[%clk 0:01:50.6]} 23...
Nh4 {[%clk 0:02:05.1]} 24. Kh1 {[%clk 0:01:46.7]} 24... Qg6 {[%clk 0:02:04.7]}
25. Rg1 {[%clk 0:01:45]} 25... h6 {[%clk 0:02:00.7]} 26. Qe2 {[%clk 0:01:38.7]}
26... Qg5 {[%clk 0:01:53.7]} 27. b4 {[%clk 0:01:22.3]} 27... Be7 {[%clk
0:01:48.5]} 28. Nc1 {[%clk 0:01:18.2]} 28... Bf6 {[%clk 0:01:47.8]} 29. Nb3
{[%clk 0:01:18.2]} 29... e5 {[%clk 0:01:42.7]} 30. dxe5 {[%clk 0:01:17.4]} 30...
Bxe5 {[%clk 0:01:41.8]} 31. Bxe5 {[%clk 0:01:09.1]} 31... Rxe5 {[%clk
0:01:41.6]} 32. Rad1 {[%clk 0:01:03.9]} 32... Rxd1 {[%clk 0:01:36.1]} 33. Qxd1
{[%clk 0:01:03.3]} 33... Rd5 {[%clk 0:01:36.6]} 34. Qe2 {[%clk 0:01:00.5]} 34...
Qg6 {[%clk 0:01:14.5]} 35. Nd2 {[%clk 0:00:47.8]} 35... Kh7 {[%clk 0:01:12.6]}
36. Nc4 {[%clk 0:00:45.7]} 36... Qf6 {[%clk 0:01:01.6]} 37. Nd6 {[%clk
0:00:42.7]} 37... Qc3 {[%clk 0:00:59.9]} 38. Qe1 {[%clk 0:00:31.6]} 38... Qb2
{[%clk 0:00:43.2]} 39. f4 {[%clk 0:00:22.4]} 39... g5 {[%clk 0:00:29.1]} 40. Qg3
{[%clk 0:00:19.1]} 40... Kg6 {[%clk 0:00:21]} 41. fxg5 {[%clk 0:00:13.4]} 41...
hxg5 {[%clk 0:00:21.9]} 42. Nc8 {[%clk 0:00:11.9]} 42... Qe5 {[%clk 0:00:18.3]}
43. Qxe5 {[%clk 0:00:11.3]} 43... Rxe5 {[%clk 0:00:19.2]} 44. Rd1 {[%clk
0:00:11.3]} 44... f4 {[%clk 0:00:19.5]} 45. Kg1 {[%clk 0:00:09.4]} 45... fxe3
{[%clk 0:00:17.7]} 46. Re1 {[%clk 0:00:07.9]} 46... Nf5 {[%clk 0:00:17.5]} 47.
g4 {[%clk 0:00:07.5]} 47... Nh4 {[%clk 0:00:16.1]} 48. Rxe3 {[%clk 0:00:07]}
48... Kf6 {[%clk 0:00:16.1]} 49. Nd6 {[%clk 0:00:05.1]} 49... Ke6 {[%clk
0:00:16.4]} 50. Rxe4 {[%clk 0:00:04.5]} 50... Kd5 {[%clk 0:00:14.2]} 51. Rxe5+
{[%clk 0:00:03.9]} 51... Kxe5 {[%clk 0:00:15.1]} 52. Nxb7 {[%clk 0:00:03.9]}
52... Kd5 {[%clk 0:00:15.6]} 53. Nd8 {[%clk 0:00:03.2]} 53... Nf3+ {[%clk
0:00:15.3]} 54. Kf2 {[%clk 0:00:02.6]} 54... Ne5 {[%clk 0:00:16.2]} 55. Kg3
{[%clk 0:00:02.4]} 55... Nd3 {[%clk 0:00:15]} 56. h4 {[%clk 0:00:02.6]} 56...
gxh4+ {[%clk 0:00:15.4]} 57. Kxh4 {[%clk 0:00:02.8]} 57... Nxb4 {[%clk
0:00:15.8]} 58. g5 {[%clk 0:00:03]} 58... Kxc5 {[%clk 0:00:13.7]} 59. g6 {[%clk
0:00:01.9]} 59... Nd5 {[%clk 0:00:14.2]} 60. Kg5 {[%clk 0:00:01.4]} 60... Ne7
{[%clk 0:00:13.6]} 61. g7 {[%clk 0:00:01.5]} 61... Kd6 {[%clk 0:00:13.4]} 62.
Kf6 {[%clk 0:00:01.6]} 62... Ng8+ {[%clk 0:00:13.5]} 63. Kf7 {[%clk 0:00:01.6]}
63... Nh6+ {[%clk 0:00:13.9]} 64. Kg6 {[%clk 0:00:01.8]} 64... Ng8 {[%clk
0:00:14.4]} 65. Nb7+ {[%clk 0:00:01.3]} 65... Kc7 {[%clk 0:00:14.2]} 0-1

[Event "*** SCC Grand Prix: Titled Tuesday Blitz"]
[Site "Chess.com"]
[Date "2020.08.11"]
[Round "2"]
[White "Dedic8"]
[Black "Orest_Vovk"]
[Result "1-0"]
[WhiteElo "2829"]
[BlackElo "2425"]
[TimeControl "180+1"]
[EndTime "10:20:11 PDT"]
[Termination "Dedic8 won on time"]

1. e4 {[%clk 0:03:00.9]} 1... g5 {[%clk 0:02:58.8]} 2. d4 {[%clk 0:02:59.2]}
2... g4 {[%clk 0:02:58.7]} 3. Qxg4 {[%clk 0:02:57.4]} 3... d5 {[%clk 0:02:58.6]}
4. Qf3 {[%clk 0:02:55.7]} 4... dxe4 {[%clk 0:02:57.9]} 5. Qxe4 {[%clk
0:02:56.6]} 5... Nf6 {[%clk 0:02:58]} 6. Qd3 {[%clk 0:02:56.8]} 6... Nc6 {[%clk
0:02:58]} 7. Nf3 {[%clk 0:02:55.3]} 7... Bg4 {[%clk 0:02:57.3]} 8. c3 {[%clk
0:02:45.2]} 8... Qd5 {[%clk 0:02:56.5]} 9. Bf4 {[%clk 0:02:21.7]} 9... O-O-O
{[%clk 0:02:51.9]} 10. Nbd2 {[%clk 0:02:22.2]} 10... Nh5 {[%clk 0:02:37.7]} 11.
Be3 {[%clk 0:02:17.4]} 11... e5 {[%clk 0:02:37.6]} 12. c4 {[%clk 0:01:54.1]}
12... Qa5 {[%clk 0:02:28.9]} 13. d5 {[%clk 0:01:52.7]} 13... f5 {[%clk 0:02:10]}
14. Qb3 {[%clk 0:01:44.6]} 14... Bb4 {[%clk 0:01:38.4]} 15. a3 {[%clk
0:01:31.4]} 15... Bxf3 {[%clk 0:01:10.1]} 16. gxf3 {[%clk 0:01:25]} 16... f4
{[%clk 0:01:10.1]} 17. Bh3+ {[%clk 0:01:07.5]} 17... Kb8 {[%clk 0:01:09.2]} 18.
dxc6 {[%clk 0:01:07.2]} 18... Bxd2+ {[%clk 0:01:07]} 19. Kf1 {[%clk 0:01:07.5]}
19... b6 {[%clk 0:01:04.1]} 20. Bxd2 {[%clk 0:01:01.8]} 20... Qxd2 {[%clk
0:01:03.8]} 21. Bf5 {[%clk 0:00:52.1]} 21... Nf6 {[%clk 0:00:44.9]} 22. Qb5
{[%clk 0:00:49.3]} 22... Qd6 {[%clk 0:00:15.3]} 23. a4 {[%clk 0:00:43]} 23... e4
{[%clk 0:00:14.7]} 24. c5 {[%clk 0:00:31.1]} 24... Qd5 {[%clk 0:00:11.8]} 25.
fxe4 {[%clk 0:00:24.8]} 25... Nxe4 {[%clk 0:00:11.7]} 26. Bxe4 {[%clk
0:00:24.3]} 26... Qxe4 {[%clk 0:00:12.1]} 27. Rg1 {[%clk 0:00:23.2]} 27... f3
{[%clk 0:00:11.6]} 28. Re1 {[%clk 0:00:22.4]} 28... Qf5 {[%clk 0:00:06.5]} 29.
Rg3 {[%clk 0:00:19.5]} 29... Rhe8 {[%clk 0:00:05.2]} 30. Ra1 {[%clk 0:00:09.2]}
30... Qe4 {[%clk 0:00:01.9]} 31. Qa6 {[%clk 0:00:05]} 31... Qxc6 {[%clk
0:00:01.5]} 32. Kg1 {[%clk 0:00:05.4]} 32... Qxc5 {[%clk 0:00:01.7]} 33. a5
{[%clk 0:00:05.2]} 33... Qc6 {[%clk 0:00:01.8]} 34. axb6 {[%clk 0:00:05.2]}
34... Qb7 {[%clk 0:00:02.7]} 35. bxa7+ {[%clk 0:00:05.2]} 35... Ka8 {[%clk
0:00:03.2]} 36. Qxb7+ {[%clk 0:00:06.1]} 36... Kxb7 {[%clk 0:00:02.7]} 37. Rxf3
{[%clk 0:00:07]} 37... Ra8 {[%clk 0:00:03.1]} 38. Rb3+ {[%clk 0:00:07.1]} 38...
Kc6 {[%clk 0:00:04]} 39. Rc3+ {[%clk 0:00:07]} 39... Kb7 {[%clk 0:00:03.9]} 40.
Rb3+ {[%clk 0:00:06.7]} 40... Kc8 {[%clk 0:00:04]} 41. Rh3 {[%clk 0:00:07.6]}
41... Re7 {[%clk 0:00:03.6]} 42. Ra4 {[%clk 0:00:06.8]} 42... Kb7 {[%clk
0:00:03.7]} 43. Rb3+ {[%clk 0:00:07]} 43... Kc8 {[%clk 0:00:03.9]} 44. Rg3
{[%clk 0:00:07.9]} 44... Kb7 {[%clk 0:00:03.8]} 45. Kg2 {[%clk 0:00:08.3]} 45...
Rxa7 {[%clk 0:00:03.7]} 46. Rxa7+ {[%clk 0:00:07.7]} 46... Kxa7 {[%clk
0:00:03.8]} 47. h4 {[%clk 0:00:08.1]} 47... Kb6 {[%clk 0:00:03.9]} 48. h5 {[%clk
0:00:08.4]} 48... Re5 {[%clk 0:00:04]} 49. Rh3 {[%clk 0:00:07.5]} 49... Rb5
{[%clk 0:00:03.6]} 50. b3 {[%clk 0:00:07.7]} 50... Rg5+ {[%clk 0:00:03.1]} 51.
Kf3 {[%clk 0:00:07.5]} 51... Kb5 {[%clk 0:00:04]} 52. Ke4 {[%clk 0:00:06.9]}
52... Rg2 {[%clk 0:00:04.1]} 53. f4 {[%clk 0:00:07.1]} 53... c5 {[%clk
0:00:04.7]} 54. f5 {[%clk 0:00:07.2]} 54... Re2+ {[%clk 0:00:05.2]} 55. Kd5
{[%clk 0:00:07.6]} 55... Rd2+ {[%clk 0:00:04.6]} 56. Ke6 {[%clk 0:00:07.9]}
56... Kc6 {[%clk 0:00:04]} 57. f6 {[%clk 0:00:08]} 57... Re2+ {[%clk 0:00:04]}
58. Kf7 {[%clk 0:00:08.5]} 58... Re5 {[%clk 0:00:03.1]} 59. h6 {[%clk
0:00:08.5]} 59... Kd6 {[%clk 0:00:03]} 60. Kg7 {[%clk 0:00:08.7]} 60... Ke6
{[%clk 0:00:02.7]} 61. Rg3 {[%clk 0:00:08]} 61... Rf5 {[%clk 0:00:01.2]} 62.
Re3+ {[%clk 0:00:08.5]} 62... Kd7 {[%clk 0:00:01.3]} 63. f7 {[%clk 0:00:09.4]}
63... Rg5+ {[%clk 0:00:01.3]} 64. Kxh7 {[%clk 0:00:10]} 64... Rf5 {[%clk
0:00:01.6]} 65. Kg6 {[%clk 0:00:10.6]} 65... Re5 {[%clk 0:00:01.9]} 66. Rxe5
{[%clk 0:00:10.4]} 1-0